bitfinex/quotes_ETHUSD_20211001
["timestamp","ask_amount","ask_price","bid_price","bid_amount"]
[1633127008251,4.51787,3320.1,3319.7,0.22178593]
[1633127008450,6.08847,3320.1,3319.7,0.22178593]
[1633127010051,9.1006,3320.1,3319.7,0.22178593]
[1633127010253,4.51813,3319.9,3319.7,0.22178593]
[1633127010851,4.4,3319.8,3319.6,2.76987828]
[1633127011059,4.4,3319.8,3319.2,0.003]
[1633127011060,3.01266,3319.5,3319.2,0.003]
[1633127011260,3.01266,3319.5,3318.9,0.006]
[1633127011261,0.23762399,3319.3,3318.9,0.006]
[1633127011456,4.51907,3319.2,3318.4,0.009]
[1633127011656,4.51907,3319.2,3318.5,0.006]
[1633127011858,0.8381935,3319.0,3318.3,0.70826885]
[1633127012259,0.8381935,3319.0,3318.4,0.009]
[1633127012657,5.3574735,3319.0,3318.4,0.009]
[1633127012857,8.3705735,3319.0,3318.4,0.009]
[1633127013061,3.8512935,3319.0,3318.4,0.009]
[1633127013260,3.0131,3319.0,3318.5,0.11125111]
[1633127013660,3.0131,3319.0,3318.6,0.006]
[1633127014864,0.00082766,3318.9,3318.6,0.006]
[1633127015258,4.52026766,3318.9,3318.6,0.006]
[1633127016460,0.00082766,3318.9,3318.6,0.006]
[1633127017859,0.1731941,3318.8,3318.6,0.006]
[1633127018060,0.1731941,3318.8,3318.5,0.009]
[1633127018660,0.00082766,3318.9,3318.5,0.009]
[1633127018860,0.00082766,3318.9,3318.6,0.11125111]
[1633127019260,0.00082766,3318.9,3318.7,0.006]
[1633127023259,0.17320624,3318.8,3318.7,0.006]
[1633127023660,0.17320624,3318.8,3318.4,0.009]
[1633127024259,0.00082766,3318.9,3318.7,4.51808]
[1633127024461,0.00082766,3318.9,3318.4,0.009]
[1633127024661,0.00082766,3318.9,3318.8,0.006]
[1633127024662,1.9023118,3318.9,3318.8,0.006]
[1633127024861,0.21265648,3318.8,3318.5,0.11126739]
[1633127025061,0.181,3318.7,3318.5,0.11126739]
[1633127025266,0.181,3318.7,3318.6,0.006]
[1633127025460,5.46369695,3318.7,3318.6,0.006]
[1633127026459,4.70077,3318.7,3318.6,0.006]
[1633127028762,4.87395238,3318.7,3318.6,0.006]
[1633127029162,4.87395238,3318.7,3318.1,0.009]
[1633127029962,0.80700366,3318.0,3317.5,11.5741]
[1633127030164,0.80700366,3318.0,3317.5,0.003]
[1633127030165,3.06299559,3317.9,3317.5,0.003]
[1633127030366,1.30938572,3318.0,3317.5,0.003]
[1633127030563,0.28965384,3317.9,3317.3,0.003]
[1633127030764,4.52141,3317.7,3317.3,0.003]
[1633127031067,0.03528861,3317.8,3317.3,0.82151508]
[1633127031265,0.98800366,3318.0,3317.3,0.82151508]
[1633127031464,0.98800366,3318.0,3317.4,0.003]
[1633127032666,4.52067,3317.7,3317.4,0.003]
[1633127034267,0.17290644,3317.6,3317.4,0.003]
[1633127035671,0.17290644,3317.6,3317.4,0.60440471]
[1633127035871,0.80700366,3318.0,3317.5,0.11162578]
[1633127036069,0.80700366,3318.0,3317.5,0.11462578]
[1633127038271,0.80700366,3318.0,3317.6,0.063419]
[1633127038472,0.80700366,3318.0,3317.8,1.294]
[1633127038675,0.80700366,3318.0,3317.6,4.582819]
[1633127038870,0.80700366,3318.0,3317.7,0.599533]
[1633127039672,0.80700366,3318.0,3317.7,2.4071961]
[1633127039871,0.97999428,3318.0,3317.8,0.59954188]
[1633127040271,0.97999428,3318.0,3317.9,0.71188208]
[1633127040472,0.97999428,3318.0,3317.9,1.31141992]
[1633127041472,0.80700366,3318.0,3317.9,1.31141992]
[1633127042273,0.80700366,3318.0,3317.9,2.60541992]
[1633127042473,0.80700366,3318.0,3317.9,2.78641992]
[1633127044474,0.80700366,3318.0,3317.9,1.49241992]
[1633127045278,0.98001843,3318.0,3317.9,1.49241992]
[1633127045676,0.98001843,3318.0,3317.9,1.31141992]
[1633127046077,0.98001843,3318.0,3317.9,0.59953784]
[1633127046281,0.98001843,3318.0,3317.5,0.003]
[1633127046478,0.98001843,3318.0,3317.5,0.60305719]
[1633127046679,0.98001843,3318.0,3317.5,0.003]
[1633127047078,0.80700366,3318.0,3317.6,0.1115606]
[1633127047280,4.52076,3317.8,3317.6,0.1115606]
[1633127047678,0.03915174,3317.9,3317.6,0.1115606]
[1633127048079,0.80700366,3318.0,3317.6,0.1115606]
[1633127049280,5.32706366,3318.0,3317.6,0.1115606]
[1633127049480,0.80700366,3318.0,3317.6,0.1115606]
[1633127050681,5.32709366,3318.0,3317.6,0.1115606]
[1633127051280,5.50007255,3318.0,3317.5,0.003]
[1633127051480,5.50007255,3318.0,3317.5,0.6038234]
[1633127051681,0.97998255,3318.0,3317.5,0.6038234]
[1633127052482,0.80700366,3318.0,3317.6,0.11154431]
[1633127052680,0.80700366,3318.0,3317.7,0.60101932]
[1633127056288,0.9799947,3318.0,3317.7,0.60101932]
[1633127056482,0.9799947,3318.0,3317.8,0.60140112]
[1633127056682,0.9799947,3318.0,3317.9,0.60144757]
[1633127056883,0.9799947,3318.0,3317.6,0.60144917]
[1633127057985,0.80700366,3318.0,3317.6,0.60144917]
[1633127058185,0.80700366,3318.0,3317.7,0.11152802]
[1633127058384,0.80700366,3318.0,3317.8,0.60158304]
[1633127059584,5.32700366,3318.0,3317.8,0.60158304]
[1633127060385,0.80700366,3318.0,3317.8,0.60158304]
[1633127061786,0.98000684,3318.0,3317.8,0.60158304]
[1633127061986,0.98000684,3318.0,3317.9,0.60203801]
[1633127062186,0.98000684,3318.0,3317.7,0.60204498]
[1633127063186,5.49998684,3318.0,3317.7,0.60204498]
[1633127063386,0.98000684,3318.0,3317.7,0.60204498]
[1633127063588,0.80700366,3318.0,3317.8,3.1172009]
[1633127063791,0.80700366,3318.0,3317.9,4.95231205]
[1633127063992,0.80700366,3318.0,3317.9,0.78331205]
[1633127064592,0.80700366,3318.0,3317.9,6.80782205]
[1633127067388,0.98001899,3318.0,3317.9,6.80782205]
[1633127068791,0.98001899,3318.0,3317.9,0.60231205]
[1633127068990,0.80700366,3318.0,3317.9,0.60270998]
[1633127069193,0.80700366,3318.0,3317.7,0.6027221]
[1633127069389,0.80700366,3318.0,3317.8,0.60271377]
[1633127069590,0.80700366,3318.0,3317.9,0.60270715]
[1633127069789,0.80700366,3318.0,3317.7,0.60280657]
[1633127072593,9.03915,3318.4,3317.7,0.60280657]
[1633127072792,0.17299146,3318.0,3317.7,0.60280657]
[1633127073593,4.69259146,3318.0,3317.7,0.60280657]
[1633127074461,4.5196,3318.0,3317.7,0.60280657]
[1633127074658,4.5196,3318.0,3317.8,0.11151172]
[1633127074859,4.5196,3318.0,3317.9,0.60362745]
[1633127075458,0.03020726,3318.1,3317.9,0.60362745]
[1633127075659,0.003,3318.5,3317.9,0.60362745]
[1633127076262,4.5193,3318.4,3317.9,0.60362745]
[1633127078261,4.69236362,3318.4,3317.9,0.60362745]
[1633127078659,4.69236362,3318.4,3317.6,4.581632]
[1633127078660,4.69236362,3318.4,3317.7,0.6041062]
[1633127078861,4.69236362,3318.4,3318.0,0.60406119]
[1633127079060,4.69236362,3318.4,3318.1,0.60417388]
[1633127079264,4.69236362,3318.4,3318.2,0.60421227]
[1633127079565,4.69236362,3318.4,3318.3,0.60421597]
[1633127079760,4.69236362,3318.4,3318.3,0.6042394]
[1633127079965,4.5193,3318.4,3318.2,0.01266081]
[1633127080160,4.5193,3318.4,3318.3,0.60423634]
[1633127082168,6.06234701,3318.5,3318.3,3.51331872]
[1633127082169,0.03629701,3318.5,3318.3,3.51331872]
[1633127082364,0.003,3318.5,3318.4,3.95604319]
[1633127082563,0.003,3318.5,3318.4,0.78532413]
[1633127083063,0.003,3318.5,3318.4,1.60639976]
[1633127083263,0.003,3318.5,3318.4,0.78532413]
[1633127083863,0.17612377,3318.5,3318.4,0.78532413]
[1633127085464,0.003,3318.5,3318.4,0.78532413]
[1633127085665,0.003,3318.5,3318.4,0.89665666]
[1633127088067,0.003,3318.5,3318.4,0.71565666]
[1633127089268,0.17612391,3318.5,3318.4,0.60432413]
[1633127089467,0.17612391,3318.5,3318.4,0.60480817]
[1633127089667,0.17612391,3318.5,3318.3,0.60482726]
[1633127089870,0.17612391,3318.5,3318.2,0.01266081]
[1633127089871,0.17612391,3318.5,3318.4,0.60480879]
[1633127090068,0.17612391,3318.5,3318.4,0.60481474]
[1633127090267,6.20313391,3318.5,3318.3,0.60482077]
[1633127091267,6.03001,3318.5,3318.4,0.11134882]
[1633127091467,6.03001,3318.5,3318.4,0.71614186]
[1633127094871,6.03001,3318.5,3318.4,0.60479304]
[1633127095080,0.003,3318.5,3318.3,0.60477618]
[1633127095271,0.17612405,3318.5,3318.3,0.60477618]
[1633127096872,0.003,3318.5,3318.4,0.11134882]
[1633127097072,0.003,3318.5,3318.4,0.716134]
[1633127097272,4.52189,3318.5,3318.4,0.716134]
[1633127098474,0.003,3318.5,3318.4,0.716134]
[1633127100475,0.003,3318.5,3318.4,0.60478518]
[1633127100676,0.17612419,3318.5,3318.4,0.60478518]
[1633127101075,0.17612419,3318.5,3318.3,0.60469303]
[1633127101479,0.17612419,3318.5,3318.4,4.1744456]
[1633127101676,0.17612419,3318.5,3318.4,4.77907513]
[1633127101877,0.17612419,3318.5,3318.4,2.07962953]
[1633127102278,0.003,3318.5,3318.4,2.07962953]
[1633127102478,0.003,3318.5,3318.4,2.19096206]
[1633127102883,0.003,3318.5,3318.4,0.89696206]
[1633127103079,0.003,3318.5,3318.4,2.19096206]
[1633127105879,0.003,3318.5,3318.4,0.89696206]
[1633127106078,0.003,3318.5,3318.4,2.07962953]
[1633127106279,0.17612433,3318.5,3318.4,0.78562953]
[1633127107279,0.17612433,3318.5,3318.4,2.07962953]
[1633127107880,0.003,3318.5,3318.4,2.07962953]
[1633127108082,0.003,3318.5,3318.4,2.19096206]
[1633127108980,0.003,3318.5,3318.4,2.07962953]
[1633127109180,0.17612441,3318.5,3318.4,2.07962953]
[1633127111983,0.04379117,3318.5,3318.4,9.22805859]
[1633127112182,0.003,3319.0,3318.5,4.35]
[1633127112384,0.003,3319.0,3318.9,4.429913]
[1633127112582,0.003,3319.0,3318.9,8.18329112]
[1633127112783,0.003,3319.0,3318.9,0.86481592]
[1633127112983,0.003,3319.0,3318.9,6.3684376]
[1633127113582,0.003,3319.0,3318.9,7.86016949]
[1633127114184,0.003,3319.0,3318.9,2.04986949]
[1633127114385,0.003,3319.0,3318.9,1.96995649]
[1633127114585,0.003,3319.0,3318.9,1.7722246]
[1633127114787,0.08968234,3319.0,3318.9,1.7722246]
[1633127115386,0.08968234,3319.0,3318.9,0.78490292]
[1633127118388,0.09053273,3319.0,3318.9,0.78490292]
[1633127118787,0.00385039,3319.0,3318.9,0.78490292]
[1633127118990,0.00385039,3319.0,3318.9,0.98263481]
[1633127119989,0.00385039,3319.0,3318.9,0.78490292]
[1633127120188,0.09053287,3319.0,3318.9,0.78490292]
[1633127121195,4.62510135,3318.3,3318.1,0.181]
[1633127121392,4.62510135,3318.3,3317.5,3.01513]
[1633127121393,11.99260744,3318.3,3318.0,0.003]
[1633127121592,14.25105813,3318.3,3318.0,0.003]
[1633127121791,11.40881082,3318.3,3318.0,0.003]
[1633127121993,0.99944211,3317.8,3317.5,0.003]
[1633127122192,3.816137,3317.6,3317.3,0.003]
[1633127122397,4.35,3317.4,3316.9,0.003]
[1633127122592,0.24643396,3316.9,3316.7,0.003]
[1633127122793,0.24643396,3316.9,3316.2,1.33638875]
[1633127122794,4.73309605,3316.8,3316.2,1.33638875]
[1633127122991,0.079913,3316.3,3315.9,0.006]
[1633127123190,0.079913,3316.3,3316.2,1.56819053]
[1633127123392,6.03113,3316.3,3316.2,1.56819053]
[1633127123591,0.91903484,3316.4,3316.2,1.56819053]
[1633127123797,3.01573,3316.6,3316.2,1.56819053]
[1633127123991,3.05305384,3316.6,3316.2,1.56819053]
[1633127124190,3.05305384,3316.6,3316.3,2.46]
[1633127124393,3.05305384,3316.6,3316.3,2.65856293]
[1633127124593,3.05305384,3316.6,3316.3,0.19856293]
[1633127125196,4.417836,3316.4,3316.3,0.19856293]
[1633127125400,1.815836,3316.4,3316.3,0.19856293]
[1633127125592,1.815836,3316.4,3315.9,0.006]
[1633127126397,6.338146,3316.4,3315.9,0.006]
[1633127128395,6.27031,3316.4,3315.9,0.006]
[1633127129995,6.27031,3316.4,3316.1,0.19862816]
[1633127131197,0.08603436,3316.3,3315.9,0.006]
[1633127131395,4.52265,3316.2,3315.9,0.006]
[1633127131798,0.08603436,3316.3,3315.9,0.006]
[1633127132598,4.60854436,3316.3,3315.9,0.006]
[1633127133996,0.75600872,3316.1,3315.9,0.006]
[1633127135395,5.27919872,3316.1,3315.9,0.006]
[1633127136396,4.52319,3316.1,3315.9,0.006]
[1633127136799,4.60918845,3316.1,3315.9,0.006]
[1633127138397,4.66681045,3316.1,3315.9,0.006]
[1633127138798,0.14362045,3316.1,3315.9,0.006]
[1633127141399,0.057622,3316.1,3315.9,0.006]
[1633127142202,0.14362059,3316.1,3315.9,0.006]
[1633127142599,0.08599859,3316.1,3315.9,0.006]
[1633127146061,0.14507859,3316.1,3315.9,0.006]
[1633127146261,0.55131235,3316.1,3315.9,0.006]
[1633127146861,0.46531376,3316.1,3315.9,0.006]
[1633127147060,2.40697857,3316.1,3315.9,0.006]
[1633127147461,4.76781153,3316.1,3315.9,0.006]
[1633127147660,4.85381025,3316.1,3315.9,0.006]
[1633127148262,2.91214544,3316.1,3315.9,0.006]
[1633127149467,0.20530028,3315.9,3315.2,0.004]
[1633127149667,4.52381,3315.6,3315.2,0.004]
[1633127150466,5.28059763,3315.6,3315.2,0.004]
[1633127152269,0.181,3315.5,3315.2,0.004]
[1633127152471,1.5501,3315.5,3315.3,0.19888917]
[1633127153067,1.5501,3315.5,3315.2,0.004]
[1633127153268,7.62635057,3315.4,3315.2,0.004]
[1633127153469,7.80735057,3315.4,3315.2,0.004]
[1633127153669,7.37279774,3315.3,3315.2,0.004]
[1633127153871,0.4246935,3315.3,3315.2,0.004]
[1633127154869,0.181,3315.3,3315.2,0.004]
[1633127157871,0.43660189,3315.3,3315.2,0.004]
[1633127158670,0.52240856,3315.3,3315.2,0.004]
[1633127160275,5.24209402,3315.3,3315.2,0.004]
[1633127161872,5.89399213,3315.3,3315.2,0.004]
[1633127162072,5.01822009,3315.3,3315.2,0.004]
[1633127162274,4.98649213,3315.3,3315.2,0.004]
[1633127162876,7.34616385,3315.3,3315.2,0.004]
[1633127163274,7.26035718,3315.3,3315.2,0.004]
[1633127163873,9.01875718,3315.3,3315.2,0.004]
[1633127164072,9.1437405,3315.3,3315.2,0.004]
[1633127164873,12.2077665,3315.3,3315.2,0.004]
[1633127165276,8.7941775,3315.3,3315.2,0.004]
[1633127165674,8.7973775,3315.3,3315.2,0.004]
[1633127165874,8.1185775,3315.3,3315.2,0.004]
[1633127166074,8.1217775,3315.3,3315.2,0.004]
[1633127166476,8.1257775,3315.3,3315.2,0.004]
[1633127166679,8.1217775,3315.3,3315.2,0.004]
[1633127167077,4.3,3315.2,3314.7,0.006]
[1633127167280,0.181,3315.1,3314.7,0.006]
[1633127167477,15.0,3315.0,3314.7,0.006]
[1633127167678,4.3,3314.9,3314.4,0.006]
[1633127167878,0.074322,3314.7,3314.4,0.006]
[1633127168181,4.0,3314.5,3314.4,0.006]
[1633127168379,22.05837538,3314.5,3314.4,0.006]
[1633127168583,22.05837538,3314.5,3313.8,0.006]
[1633127168584,3.01807,3314.2,3313.8,0.006]
[1633127168777,0.181,3314.1,3313.8,0.006]
[1633127168977,4.3,3313.9,3313.1,0.001]
[1633127169178,15.0,3313.7,3313.1,0.001]
[1633127169377,0.72003457,3313.3,3313.1,0.001]
[1633127169577,4.70841,3313.2,3313.1,0.001]
[1633127170177,7.62366864,3313.2,3313.1,0.001]
[1633127170378,4.1,3313.1,3312.3,0.033769]
[1633127170581,4.52784,3312.7,3312.3,0.033769]
[1633127171178,7.54636,3312.7,3312.3,0.033769]
[1633127171379,3.01852,3312.7,3312.3,0.033769]
[1633127171578,3.01852,3312.7,3312.3,0.88521529]
[1633127171778,3.01852,3312.7,3312.3,0.033769]
[1633127171779,4.5275,3312.6,3312.3,0.033769]
[1633127171979,4.5275,3312.6,3312.3,0.005]
[1633127174382,4.5275,3312.6,3312.4,0.19983639]
[1633127174383,3.16096688,3312.5,3312.4,0.19983639]
[1633127174582,3.16096688,3312.5,3312.2,0.32541933]
[1633127174583,4.3,3312.4,3312.2,0.32541933]
[1633127174786,4.3,3312.4,3311.5,0.009]
[1633127174787,5.9393317,3311.7,3311.5,0.009]
[1633127174984,10.74447442,3311.7,3311.5,0.009]
[1633127175186,7.57675417,3311.7,3311.5,0.009]
[1633127175385,12.93923804,3311.7,3311.5,0.009]
[1633127175583,12.93923804,3311.7,3310.8,0.004]
[1633127175584,4.3,3311.6,3310.8,0.004]
[1633127175786,0.079913,3310.9,3310.8,0.004]
[1633127175987,0.52873796,3310.9,3310.8,0.004]
[1633127176183,4.510913,3310.9,3310.5,0.009]
[1633127176385,4.271,3310.1,3309.7,3.7803404]
[1633127176586,4.271,3310.1,3309.7,3.5013404]
[1633127176587,4.25,3310.0,3309.7,3.5013404]
[1633127176784,4.63364807,3309.8,3309.7,3.5013404]
[1633127176985,4.81464807,3309.8,3309.7,3.5013404]
[1633127177184,0.51464807,3309.8,3309.7,3.5013404]
[1633127177386,0.181,3309.8,3309.7,3.5013404]
[1633127178185,7.40951388,3309.8,3309.7,3.5013404]
[1633127178387,4.58457257,3309.7,3309.4,0.006]
[1633127178593,0.58990383,3309.7,3309.4,0.006]
[1633127178785,2.39159354,3309.8,3309.4,0.034769]
[1633127179087,0.021,3310.1,3309.4,0.034769]
[1633127179891,0.021,3310.1,3309.7,0.10078521]
[1633127180489,0.021,3310.1,3309.4,0.006]
[1633127180692,0.87122629,3309.8,3309.4,0.006]
[1633127180892,4.86866542,3309.7,3309.4,0.006]
[1633127181200,4.6206568,3309.5,3309.4,0.006]
[1633127181395,7.93762168,3309.5,3309.4,0.006]
[1633127181592,4.82668586,3309.5,3309.4,0.006]
[1633127182092,4.82668586,3309.5,3309.1,0.006]
[1633127182093,3.02212,3309.2,3308.7,0.001]
[1633127182294,4.25,3308.7,3307.9,0.005]
[1633127182493,3.61404046,3308.6,3307.9,0.005]
[1633127182691,0.003,3308.5,3307.9,0.005]
[1633127182893,0.181,3308.4,3307.9,0.005]
[1633127183293,3.02296,3308.2,3307.1,0.00422238]
[1633127183500,3.34031991,3308.1,3307.1,0.00422238]
[1633127183701,0.003,3308.0,3307.1,0.00422238]
[1633127183895,0.184,3308.0,3307.1,0.00422238]
[1633127184293,0.184,3308.0,3307.1,2.46422238]
[1633127184494,0.184,3308.0,3307.5,2.22317772]
[1633127184694,0.184,3308.0,3307.5,0.92917772]
[1633127184894,0.184,3308.0,3307.1,0.00422238]
[1633127185097,4.53442,3307.9,3307.1,0.00422238]
[1633127185295,0.45012125,3308.0,3307.1,0.00422238]
[1633127185496,0.184,3308.0,3307.6,0.10147327]
[1633127185694,0.184,3308.0,3307.6,0.05147327]
[1633127186097,0.064704,3307.9,3307.1,0.00422238]
[1633127186300,0.181,3307.8,3307.1,0.00422238]
[1633127186695,4.15,3307.7,3306.4,0.00222238]
[1633127186896,0.20891788,3307.9,3306.4,0.00222238]
[1633127186897,0.003,3307.5,3306.4,0.00222238]
[1633127187096,0.003,3307.5,3307.1,0.93222533]
[1633127187497,0.003,3307.2,3307.1,0.93222533]
[1633127188096,0.003,3307.2,3306.4,0.00222238]
[1633127188496,0.003,3307.1,3306.4,0.00222238]
[1633127188902,0.003,3307.0,3306.4,0.00222238]
[1633127189096,0.003,3307.0,3306.9,0.82249556]
[1633127189297,0.003,3307.0,3306.4,0.00222238]
[1633127189498,0.003,3307.0,3306.1,1.71000241]
[1633127189697,0.003,3307.0,3306.2,4.53451]
[1633127190098,0.003,3307.0,3306.6,1.294]
[1633127190297,0.003,3307.0,3306.2,0.98725976]
[1633127190698,0.003,3307.0,3306.4,4.53421]
[1633127190898,0.003,3307.0,3306.3,0.07683403]
[1633127191097,0.003,3307.0,3306.6,1.294]
[1633127191397,0.003,3307.0,3306.8,0.80945709]
[1633127191602,0.003,3307.0,3305.8,12.905]
[1633127191801,3.2359022,3307.0,3305.9,0.03372629]
[1633127191997,3.11003991,3306.9,3305.9,0.03372629]
[1633127192198,0.21435674,3306.8,3306.0,0.009]
[1633127192397,0.21435674,3306.8,3306.0,0.80693592]
[1633127192398,0.181,3306.7,3306.0,0.80693592]
[1633127192597,3.63357558,3306.7,3306.0,0.80693592]
[1633127192800,0.181,3306.7,3306.0,0.80693592]
[1633127192998,0.070218,3306.5,3306.0,0.80693592]
[1633127193398,0.181,3306.7,3306.0,0.80693592]
[1633127193399,0.181,3306.7,3306.0,0.009]
[1633127193596,0.181,3306.7,3306.0,0.66625428]
[1633127193796,0.181,3306.7,3306.1,0.95733457]
[1633127193797,0.39445011,3306.7,3306.1,0.95733457]
[1633127193999,0.181,3306.7,3306.1,0.95733457]
[1633127194203,0.181,3306.7,3306.0,0.62935428]
[1633127194398,0.940842,3306.1,3306.0,0.62935428]
[1633127194799,0.940842,3306.1,3306.0,0.57935428]
[1633127194999,0.940842,3306.1,3305.9,0.03372629]
[1633127195197,0.940842,3306.1,3306.0,0.60805428]
[1633127195597,0.940842,3306.1,3306.0,1.90205428]
[1633127195997,0.940842,3306.1,3305.9,0.91980506]
[1633127196199,0.940842,3306.1,3306.0,0.30805428]
[1633127196398,0.940842,3306.1,3306.0,0.3851016]
[1633127196803,0.057538,3306.9,3306.2,4.25]
[1633127197001,0.003,3307.0,3306.3,3.27788142]
[1633127197200,0.003,3307.0,3306.9,0.82562597]
[1633127197899,0.003,3307.0,3306.9,2.11962597]
[1633127198699,0.003,3307.0,3306.9,1.294]
[1633127199701,0.003,3307.0,3306.2,2.5321042]
[1633127199902,0.064399,3306.9,3306.0,25.22995428]
[1633127200101,0.003,3307.0,3306.4,1.294]
[1633127200301,0.003,3307.0,3306.0,0.31105428]
[1633127201201,0.24637445,3307.0,3306.3,0.75564576]
[1633127201402,0.003,3307.0,3306.3,0.75564576]
[1633127201806,0.003,3307.0,3306.4,0.07681763]
[1633127202203,0.184,3307.0,3306.4,0.07681763]
[1633127202607,0.184,3307.0,3306.0,0.31105428]
[1633127202805,0.39266456,3307.0,3306.0,0.31105428]
[1633127203205,0.34333097,3306.9,3306.2,0.99365404]
[1633127203406,0.21166456,3307.0,3306.2,0.99365404]
[1633127204204,0.32229218,3306.9,3306.2,0.99365404]
[1633127205005,0.32229218,3306.9,3306.2,0.89365404]
[1633127205803,0.27229218,3306.9,3306.2,0.89365404]
[1633127206409,0.071371,3306.6,3306.0,0.003]
[1633127206807,0.28713046,3306.6,3306.0,0.003]
[1633127207008,0.23873569,3306.5,3306.0,0.003]
[1633127207204,0.28055808,3306.6,3306.0,0.003]
[1633127207405,0.28055808,3306.6,3306.1,0.07693246]
[1633127207406,0.25579292,3306.2,3306.1,0.07693246]
[1633127207604,2.22668846,3306.2,3306.1,0.07693246]
[1633127208008,6.0492477,3306.3,3306.1,0.07693246]
[1633127208206,6.25779152,3306.3,3306.0,0.003]
[1633127208407,0.20854382,3306.3,3306.0,0.003]
[1633127208808,0.20854382,3306.3,3306.0,0.79959267]
[1633127209208,0.20854382,3306.3,3306.0,0.003]
[1633127209612,0.28148642,3306.2,3306.0,0.003]
[1633127210210,0.88658373,3306.2,3306.0,0.003]
[1633127210408,2.61567026,3306.1,3306.0,0.003]
[1633127210608,2.53794271,3306.1,3306.0,0.003]
[1633127210808,0.28794271,3306.1,3306.0,0.003]
[1633127211013,11.10052844,3306.1,3306.0,0.003]
[1633127211210,14.23636058,3306.1,3306.0,0.003]
[1633127211409,4.40132715,3305.9,3305.8,0.006]
[1633127211626,4.66224015,3305.9,3305.8,0.006]
[1633127212275,9.20028015,3305.9,3305.8,0.006]
[1633127212671,10.65868015,3305.9,3305.8,0.006]
[1633127212872,11.377253,3305.9,3305.8,0.08309655]
[1633127213071,4.2,3305.8,3305.7,0.006]
[1633127213271,4.381,3305.8,3305.7,0.006]
[1633127213471,4.381,3305.8,3305.6,0.006]
[1633127213472,3.02552,3305.3,3305.0,0.004]
[1633127213874,0.181,3305.5,3305.0,0.004]
[1633127214271,0.92720862,3305.3,3305.0,0.004]
[1633127214474,0.03608525,3305.4,3305.0,0.004]
[1633127214672,0.03487055,3305.6,3305.0,0.004]
[1633127214875,0.30452142,3305.8,3305.0,0.004]
[1633127215672,4.53749,3305.4,3305.0,0.004]
[1633127215873,3.02545,3305.3,3305.0,0.004]
[1633127216274,0.84601185,3305.2,3305.0,0.004]
[1633127217276,5.38418185,3305.2,3305.0,0.004]
[1633127218575,8.23763878,3305.2,3305.1,0.0387945]
[1633127218774,4.53817,3305.2,3305.1,0.0387945]
[1633127218977,4.71917,3305.2,3305.1,0.0387945]
[1633127219174,4.71917,3305.2,3305.0,0.004]
[1633127219375,4.96599631,3305.2,3305.0,0.004]
[1633127219775,4.96599631,3305.2,3304.6,0.006]
[1633127219776,7.85358644,3305.2,3304.6,0.006]
[1633127219984,0.02534182,3304.7,3304.3,0.00410078]
[1633127220177,0.181,3304.6,3304.3,0.00410078]
[1633127220376,0.181,3304.6,3304.1,0.006]
[1633127220377,5.25215977,3304.2,3304.1,0.006]
[1633127220577,1.23315977,3304.2,3304.1,0.006]
[1633127220776,5.77333977,3304.2,3304.1,0.006]
[1633127221176,1.23315977,3304.2,3304.1,0.006]
[1633127221776,5.77272977,3304.2,3304.1,0.006]
[1633127221977,1.23315977,3304.2,3304.1,0.006]
[1633127222977,1.23315977,3304.2,3304.1,0.87912169]
[1633127223177,1.23315977,3304.2,3304.1,0.006]
[1633127223178,1.05215977,3304.2,3304.1,0.006]
[1633127223979,1.05215977,3304.2,3304.1,0.04510655]
[1633127224577,1.05215977,3304.2,3304.1,0.006]
[1633127224776,1.59720619,3304.2,3304.1,0.006]
[1633127224978,1.29874419,3304.2,3304.1,0.006]
[1633127225180,1.29874419,3304.2,3304.0,0.89889699]
[1633127225578,1.29874419,3304.2,3303.6,0.006]
[1633127226578,1.29874419,3304.2,3303.6,0.76218412]
[1633127227281,1.29874419,3304.2,3303.6,0.63018412]
[1633127227480,1.28825613,3304.2,3303.6,0.63018412]
[1633127228280,0.2567086,3304.1,3303.5,0.009]
[1633127228484,4.12206882,3303.6,3302.9,0.006]
[1633127228683,0.02413232,3303.0,3302.3,2.41206]
[1633127228889,0.003,3303.0,3302.6,1.294]
[1633127229085,0.003,3303.0,3302.3,2.41206]
[1633127229281,0.003,3303.0,3302.0,0.19]
[1633127229679,0.003,3303.0,3302.4,0.03959963]
[1633127230080,0.003,3303.0,3302.0,1.4006665]
[1633127230285,0.24620912,3302.9,3302.0,0.19]
[1633127230681,0.24620912,3302.9,3302.5,0.92449798]
[1633127231084,0.24620912,3302.9,3302.7,1.294]
[1633127231085,0.03620912,3302.9,3302.7,1.294]
[1633127231284,0.03620912,3302.9,3302.8,2.78707222]
[1633127231483,0.03620912,3302.9,3302.5,0.92449798]
[1633127232683,0.03620912,3302.9,3302.2,0.187]
[1633127232886,0.03620912,3302.9,3302.2,0.137]
[1633127233284,0.03620912,3302.9,3302.0,0.009]
[1633127233487,4.52993912,3303.1,3302.2,4.2]
[1633127233684,4.52993912,3303.1,3302.5,0.003]
[1633127233885,4.52993912,3303.1,3302.0,0.009]
[1633127234085,0.003,3303.0,3302.0,0.009]
[1633127234485,4.54388,3303.0,3302.0,0.009]
[1633127234687,0.003,3303.0,3301.9,3.15863092]
[1633127234886,0.003,3302.5,3301.9,3.15863092]
[1633127235086,0.003,3302.5,3301.9,1.3627326]
[1633127235287,0.003,3302.5,3302.0,0.11278641]
[1633127235489,0.003,3302.5,3302.4,0.83463117]
[1633127235686,0.003,3302.5,3301.9,0.187]
[1633127235886,0.14801988,3302.4,3301.9,0.187]
[1633127236687,0.14801988,3302.4,3302.3,0.71025379]
[1633127239288,0.14801988,3302.4,3301.9,0.187]
[1633127239489,0.14801988,3302.4,3302.1,1.294]
[1633127239693,0.003,3303.5,3303.0,6.08482139]
[1633127239891,0.003,3303.5,3303.1,8.11507598]
[1633127240291,0.003,3303.5,3303.2,0.88183497]